fUSD/lending_fUSD_20250107
["ID","MTS","AMOUNT","RATE_DAILY","PERIOD"]
[347968803,1736254254660,-170532.9619653,0.0001,2]
[347968804,1736254254706,-500.0,9.772e-05,2]
[347968805,1736254254716,-135.0,0.0001,2]
[347968806,1736254254918,-1997.3,0.0001,2]
[347968807,1736254254929,-1078.88186558,0.0001,2]
[347968808,1736254254940,-51906.32729212,0.0001,2]
[347968809,1736254255637,-261.79830738,9.77e-05,2]
[347968810,1736254288103,-2500.0,0.00012,7]
[347968811,1736254347408,500.0,0.0002,120]
[347968812,1736254357715,501.0,0.0002,120]
[347968815,1736255028925,168.22,6.959e-05,2]
[347968816,1736255279412,59921.9,0.0002,120]
[347968824,1736255432052,-742.39,8.219e-05,2]
[347968825,1736255432062,-150.0,8.268e-05,2]
[347968826,1736255432071,-150.0,8.295e-05,2]
[347968827,1736255432081,-340.29,8.318e-05,2]
[347968828,1736255432090,-734.4,8.327e-05,2]
[347968829,1736255432100,-150.0,8.412e-05,2]
[347968830,1736255432109,-437.76,8.466e-05,2]
[347968831,1736255432118,-771.88,8.466e-05,2]
[347968832,1736255432127,-150.0,8.571e-05,2]
[347968833,1736255432137,-150.0,8.68e-05,2]
[347968834,1736255432146,-150.0,8.69e-05,2]
[347968835,1736255432156,-150.0,8.705e-05,2]
[347968836,1736255432166,-1200.0,8.768e-05,2]
[347968837,1736255432175,-250.0,8.788e-05,2]
[347968838,1736255432185,-168.7,8.823e-05,2]
[347968839,1736255432194,-150.0,8.824e-05,2]
[347968840,1736255432206,-150.0,8.828e-05,2]
[347968841,1736255432215,-250.0,8.878e-05,2]
[347968842,1736255432225,-150.0,8.917e-05,2]
[347968843,1736255432234,-250.0,8.956e-05,2]
[347968844,1736255432244,-4304.58,8.977e-05,2]
[347968845,1736255432254,-1116.22748198,8.985e-05,2]
[347968846,1736255432265,-1116.22748198,8.985e-05,2]
[347968847,1736255432275,-150.0,8.997e-05,2]
[347968848,1736255432284,-1957.4,9.014e-05,2]
[347968849,1736255432294,-150.0,9.025e-05,2]
[347968850,1736255432304,-150.0,9.025e-05,2]
[347968851,1736255432314,-150.0,9.025e-05,2]
[347968852,1736255432323,-150.0,9.025e-05,2]
[347968853,1736255432334,-900.28,9.048e-05,2]
[347968854,1736255432343,-7727.11,9.048e-05,2]
[347968855,1736255432352,-1000.0,9.062e-05,2]
[347968856,1736255432362,-150.0,9.081e-05,2]
[347968857,1736255432371,-4405.857818,9.085e-05,2]
[347968858,1736255432383,-4157.02067509,9.085e-05,2]
[347968859,1736255432395,-15337.12150691,9.085e-05,2]
[347968860,1736255432404,-150.0,9.096e-05,2]
[347968861,1736255432414,-958.99,9.098e-05,2]
[347968862,1736255432423,-150.0,9.125e-05,2]
[347968863,1736255432433,-150.0,9.141e-05,2]
[347968864,1736255432443,-150.0,9.141e-05,2]
[347968865,1736255432454,-150.0,9.155e-05,2]
[347968866,1736255432463,-150.0,9.168e-05,2]
[347968867,1736255432473,-150.0,9.178e-05,2]
[347968868,1736255432483,-150.0,9.192e-05,2]
[347968869,1736255432492,-150.0,9.199e-05,2]
[347968870,1736255432501,-150.0,9.24e-05,2]
[347968871,1736255432511,-150.0,9.275e-05,2]
[347968872,1736255432520,-150.0,9.311e-05,2]
[347968873,1736255432529,-150.0,9.314e-05,2]
[347968874,1736255432538,-150.0,9.317e-05,2]
[347968875,1736255432547,-150.0,9.323e-05,2]
[347968876,1736255432557,-150.0,9.342e-05,2]
[347968878,1736255432566,-150.0,9.359e-05,2]
[347968880,1736255432576,-734.4,9.368e-05,2]
[347968882,1736255432585,-150.0,9.383e-05,2]
[347968884,1736255432594,-150.0,9.385e-05,2]
[347968886,1736255432605,-150.0,9.411e-05,2]
[347968888,1736255432614,-150.0,9.422e-05,2]
[347968890,1736255432623,-437.76,9.425e-05,2]
[347968892,1736255432632,-771.88,9.425e-05,2]
[347968894,1736255432641,-771.88,9.425e-05,2]
[347968896,1736255432651,-437.76,9.425e-05,2]
[347968898,1736255432660,-437.76,9.425e-05,2]
[347968900,1736255432669,-771.88,9.425e-05,2]
[347968903,1736255432679,-437.01,9.425e-05,2]
[347968906,1736255432688,-771.88,9.425e-05,2]
[347968909,1736255432697,-1609.8,9.425e-05,2]
[347968913,1736255432708,-150.0,9.454e-05,2]
[347968917,1736255432718,-150.0,9.473e-05,2]
[347968920,1736255432727,-150.0,9.526e-05,2]
[347968924,1736255432738,-150.0,9.526e-05,2]
[347968927,1736255432747,-150.0,9.526e-05,2]
[347968930,1736255432757,-150.0,9.526e-05,2]
[347968933,1736255432766,-150.0,9.545e-05,2]
[347968936,1736255432777,-150.0,9.558e-05,2]
[347968939,1736255432787,-150.0,9.598e-05,2]
[347968942,1736255432796,-150.0,9.598e-05,2]
[347968945,1736255432807,-150.0,9.604e-05,2]
[347968949,1736255432817,-3893.0,9.636e-05,2]
[347968952,1736255432827,-9616.0,9.636e-05,2]
[347968995,1736255433105,-150.0,9.636e-05,2]
[347968997,1736255433115,-150.0,9.663e-05,2]
[347968999,1736255433124,-1000.0,9.669e-05,2]
[347969001,1736255433134,-150.0,9.669e-05,2]
[347969003,1736255433143,-1864.45612843,9.671e-05,2]
[347969005,1736255433155,-949.83135,9.671e-05,2]
[347969010,1736255433187,-2185.71252157,9.671e-05,2]
[347969012,1736255433197,-150.0,9.678e-05,2]
[347969014,1736255433208,-150.0,9.693e-05,2]
[347969016,1736255433218,-5279.133364,9.696e-05,2]
[347969018,1736255433227,-156.126847,9.696e-05,2]
[347969020,1736255433237,-4200.397741,9.696e-05,2]
[347969022,1736255433247,-5279.133364,9.698e-05,2]
[347969024,1736255433258,-4200.397741,9.698e-05,2]
[347969026,1736255433268,-150.0,9.71e-05,2]
[347969028,1736255433278,-150.0,9.71e-05,2]
[347969030,1736255433287,-150.0,9.741e-05,2]
[347969032,1736255433298,-150.0,9.742e-05,2]
[347969033,1736255433307,-150.0,9.762e-05,2]
[347969035,1736255433317,-871.75,9.768e-05,2]
[347969038,1736255433327,-500.0,9.768e-05,2]
[347969040,1736255433336,-2463.84,9.768e-05,2]
[347969041,1736255433347,-1758.46,9.768e-05,2]
[347969044,1736255433356,-606.66,9.769e-05,2]
[347969045,1736255433366,-500.00128527,9.769e-05,2]
[347969048,1736255433376,-500.0,9.769e-05,2]
[347969050,1736255433386,-500.0,9.769e-05,2]
[347969052,1736255433396,-500.0,9.769e-05,2]
[347969054,1736255433405,-1008.96,9.769e-05,2]
[347969056,1736255433415,-500.0,9.769e-05,2]
[347969058,1736255433424,-500.0,9.769e-05,2]
[347969060,1736255433434,-561.63,9.769e-05,2]
[347969062,1736255433443,-500.0,9.769e-05,2]
[347969064,1736255433454,-500.0,9.769e-05,2]
[347969066,1736255433463,-1090.51,9.769e-05,2]
[347969068,1736255433472,-500.0,9.769e-05,2]
[347969070,1736255433481,-500.0,9.769e-05,2]
[347969072,1736255433490,-539.16,9.769e-05,2]
[347969073,1736255433500,-500.0,9.769e-05,2]
[347969075,1736255433509,-1751.41,9.769e-05,2]
[347969077,1736255433519,-500.0,9.769e-05,2]
[347969079,1736255433528,-500.0,9.769e-05,2]
[347969081,1736255433538,-500.0,9.769e-05,2]
[347969083,1736255433548,-663.23,9.769e-05,2]
[347969085,1736255433558,-500.0,9.769e-05,2]
[347969087,1736255433568,-500.0,9.769e-05,2]
[347969089,1736255433578,-604.16,9.769e-05,2]
[347969091,1736255433587,-500.0,9.769e-05,2]
[347969093,1736255433597,-500.0,9.769e-05,2]
[347969095,1736255433607,-500.0,9.769e-05,2]
[347969097,1736255433617,-634.38,9.769e-05,2]
[347969099,1736255433626,-500.0,9.769e-05,2]
[347969101,1736255433635,-500.0,9.769e-05,2]
[347969103,1736255433646,-500.0,9.769e-05,2]
[347969105,1736255433655,-570.83,9.769e-05,2]
[347969107,1736255433665,-500.0,9.769e-05,2]
[347969109,1736255433674,-500.0,9.769e-05,2]
[347969111,1736255433684,-90.7244198,9.769e-05,2]
[347969114,1736255433697,-409.2755802,9.769e-05,2]
[347969116,1736255433710,-500.0,9.769e-05,2]
[347969118,1736255433720,-623.55,9.769e-05,2]
[347969120,1736255433729,-500.0,9.769e-05,2]
[347969121,1736255433740,-1859.4,9.769e-05,2]
[347969123,1736255433750,-500.0,9.769e-05,2]
[347969125,1736255433759,-500.0,9.769e-05,2]
[347969127,1736255433769,-919.79,9.769e-05,2]
[347969129,1736255433780,-131.65102435,9.769e-05,2]
[347969133,1736255433806,-432.684,9.769e-05,2]
[347969136,1736255433831,-315.56130515,9.769e-05,2]
[347969139,1736255433843,-1025.9936705,9.769e-05,2]
[347969141,1736255433853,-500.0,9.769e-05,2]
[347969143,1736255433863,-1140.38,9.769e-05,2]
[347969145,1736255433872,-681.12,9.769e-05,2]
[347969146,1736255433881,-584.45,9.769e-05,2]
[347969148,1736255433891,-500.0,9.769e-05,2]
[347969151,1736255433900,-500.0,9.769e-05,2]
[347969153,1736255433910,-500.0,9.769e-05,2]
[347969154,1736255433919,-980.57,9.769e-05,2]
[347969157,1736255433928,-500.0,9.769e-05,2]
[347969159,1736255433938,-456.88853114,9.769e-05,2]
[347969161,1736255433948,-603.29,9.769e-05,2]
[347969163,1736255433963,-751.32,9.769e-05,2]
[347969164,1736255433973,-500.0,9.769e-05,2]
[347969166,1736255433983,-500.0,9.769e-05,2]
[347969169,1736255433993,-603.29,9.769e-05,2]
[347969170,1736255434004,-529.89,9.769e-05,2]
[347969172,1736255434014,-582.74,9.769e-05,2]
[347969174,1736255434024,-992.9,9.769e-05,2]
[347969176,1736255434034,-500.0,9.769e-05,2]
[347969178,1736255434044,-500.0,9.769e-05,2]
[347969180,1736255434054,-500.0,9.769e-05,2]
[347969182,1736255434065,-541.66,9.769e-05,2]
[347969184,1736255434075,-500.0,9.769e-05,2]
[347969186,1736255434084,-582.46,9.769e-05,2]
[347969188,1736255434094,-500.0,9.769e-05,2]
[347969191,1736255434105,-530.07,9.769e-05,2]
[347969193,1736255434115,-500.0,9.769e-05,2]
[347969194,1736255434125,-1816.79,9.769e-05,2]
[347969197,1736255434135,-500.0,9.769e-05,2]
[347969199,1736255434145,-500.0,9.769e-05,2]
[347969201,1736255434154,-500.0,9.769e-05,2]
[347969203,1736255434164,-500.0,9.769e-05,2]
[347969205,1736255434173,-500.0,9.769e-05,2]
[347969207,1736255434183,-561.63,9.769e-05,2]
[347969208,1736255434191,-500.0,9.769e-05,2]
[347969209,1736255434200,-500.0,9.769e-05,2]
[347969210,1736255434213,-500.0,9.769e-05,2]
[347969211,1736255434222,-500.0,9.769e-05,2]
[347969212,1736255434231,-2173.44,9.769e-05,2]
[347969213,1736255434240,-500.0,9.769e-05,2]
[347969214,1736255434250,-500.0,9.769e-05,2]
[347969215,1736255434263,-500.0,9.769e-05,2]
[347969216,1736255434273,-500.0,9.769e-05,2]
[347969217,1736255434282,-500.0,9.769e-05,2]
[347969218,1736255434291,-500.0,9.769e-05,2]
[347969219,1736255434302,-2098.45,9.769e-05,2]
[347969220,1736255434312,-500.0,9.769e-05,2]
[347969222,1736255434322,-500.0,9.769e-05,2]
[347969224,1736255434331,-500.0,9.769e-05,2]
[347969226,1736255434342,-500.0,9.769e-05,2]
[347969228,1736255434351,-500.0,9.769e-05,2]
[347969230,1736255434361,-500.0,9.769e-05,2]
[347969232,1736255434370,-500.0,9.769e-05,2]
[347969234,1736255434379,-500.0,9.769e-05,2]
[347969235,1736255434388,-500.0,9.769e-05,2]
[347969237,1736255434397,-500.0,9.769e-05,2]
[347969239,1736255434406,-500.0,9.769e-05,2]
[347969241,1736255434416,-500.0,9.769e-05,2]
[347969243,1736255434426,-500.0,9.769e-05,2]
[347969245,1736255434436,-2117.77,9.769e-05,2]
[347969247,1736255434445,-500.0,9.769e-05,2]
[347969249,1736255434455,-830.69,9.769e-05,2]
[347969251,1736255434465,-500.0,9.769e-05,2]
[347969253,1736255434475,-539.93,9.769e-05,2]
[347969255,1736255434485,-603.29,9.769e-05,2]
[347969257,1736255434496,-641.88,9.769e-05,2]
[347969259,1736255434505,-500.0,9.769e-05,2]
[347969261,1736255434515,-500.0,9.769e-05,2]
[347969263,1736255434525,-500.0,9.769e-05,2]
[347969265,1736255434535,-500.0,9.769e-05,2]
[347969267,1736255434544,-500.0,9.769e-05,2]
[347969269,1736255434554,-500.0,9.769e-05,2]
[347969271,1736255434564,-500.0,9.769e-05,2]
[347969273,1736255434574,-500.0,9.769e-05,2]
[347969275,1736255434583,-661.8,9.769e-05,2]
[347969277,1736255434592,-500.0,9.769e-05,2]
[347969279,1736255434603,-524.17,9.769e-05,2]
[347969281,1736255434612,-500.0,9.769e-05,2]
[347969283,1736255434622,-500.0,9.769e-05,2]
[347969285,1736255434631,-790.69,9.769e-05,2]
[347969287,1736255434641,-500.0,9.769e-05,2]
[347969289,1736255434650,-500.0,9.769e-05,2]
[347969291,1736255434660,-520.83,9.769e-05,2]
[347969294,1736255434670,-500.0,9.769e-05,2]
[347969296,1736255434679,-526.42,9.769e-05,2]
[347969297,1736255434688,-574.63,9.769e-05,2]
[347969299,1736255434698,-500.0,9.769e-05,2]
[347969301,1736255434711,-500.0,9.769e-05,2]
[347969304,1736255434721,-561.63,9.769e-05,2]
[347969306,1736255434730,-500.0,9.769e-05,2]
[347969307,1736255434739,-500.0,9.769e-05,2]
[347969310,1736255434749,-500.0,9.769e-05,2]
[347969312,1736255434759,-1034.13,9.769e-05,2]
[347969314,1736255434768,-517.62,9.769e-05,2]
[347969316,1736255434778,-500.0,9.769e-05,2]
[347969318,1736255434787,-837.78,9.769e-05,2]
[347969320,1736255434797,-2526.32,9.769e-05,2]
[347969322,1736255434806,-625.36767616,9.769e-05,2]
[347969324,1736255434819,-561.63,9.769e-05,2]
[347969326,1736255434828,-500.0,9.769e-05,2]
[347969327,1736255434841,-680.08,9.769e-05,2]
[347969329,1736255434851,-500.0,9.769e-05,2]
[347969331,1736255434860,-500.0,9.769e-05,2]
[347969333,1736255434871,-929.46,9.769e-05,2]
[347969335,1736255434881,-557.02,9.769e-05,2]
[347969337,1736255434890,-390.71024944,9.769e-05,2]
[347969339,1736255434900,-500.0,9.769e-05,2]
[347969341,1736255434911,-1481.18,9.769e-05,2]
[347969343,1736255434919,-502.03613497,9.769e-05,2]
[347969345,1736255434929,-500.0,9.769e-05,2]
[347969347,1736255434938,-500.0,9.769e-05,2]
[347969349,1736255434948,-500.0,9.769e-05,2]
[347969351,1736255434958,-576.00002095,9.769e-05,2]
[347969353,1736255434967,-500.0,9.769e-05,2]
[347969355,1736255434977,-1116.82,9.769e-05,2]
[347969357,1736255434987,-500.0,9.769e-05,2]
[347969359,1736255434996,-500.0,9.769e-05,2]
[347969361,1736255435005,-500.0,9.769e-05,2]
[347969363,1736255435015,-500.0,9.769e-05,2]
[347969365,1736255435023,-500.0,9.769e-05,2]
[347969367,1736255435033,-530.65,9.769e-05,2]
[347969369,1736255435042,-2515.72,9.769e-05,2]
[347969371,1736255435051,-1093.75,9.769e-05,2]
[347969373,1736255435060,-500.0,9.769e-05,2]
[347969375,1736255435070,-500.0,9.769e-05,2]
[347969377,1736255435081,-209.5066485,9.769e-05,2]
[347969379,1736255435090,-500.0,9.769e-05,2]
[347969381,1736255435100,-500.0,9.769e-05,2]
[347969383,1736255435110,-500.0,9.769e-05,2]
[347969385,1736255435120,-831.08,9.769e-05,2]
[347969387,1736255435129,-3032.59,9.769e-05,2]
[347969389,1736255435139,-708.06,9.769e-05,2]
[347969391,1736255435150,-500.0,9.769e-05,2]
[347969393,1736255435159,-500.0,9.769e-05,2]
[347969395,1736255435168,-500.0,9.769e-05,2]
[347969397,1736255435178,-528.41,9.769e-05,2]
[347969399,1736255435187,-500.0,9.769e-05,2]
[347969401,1736255435197,-2584.85,9.769e-05,2]
[347969403,1736255435210,-500.0,9.769e-05,2]
[347969405,1736255435219,-500.0,9.769e-05,2]
[347969407,1736255435229,-1994.98,9.769e-05,2]
[347969409,1736255435239,-500.0,9.769e-05,2]
[347969411,1736255435249,-970.25,9.769e-05,2]
[347969413,1736255435260,-520.83,9.769e-05,2]
[347969415,1736255435270,-500.0,9.769e-05,2]
[347969417,1736255435279,-1879.63,9.769e-05,2]
[347969419,1736255435289,-500.0,9.769e-05,2]
[347969421,1736255435299,-500.0,9.769e-05,2]
[347969423,1736255435309,-2357.17,9.769e-05,2]
[347969425,1736255435318,-520.83,9.769e-05,2]
[347969427,1736255435327,-500.0,9.769e-05,2]
[347969429,1736255435338,-685.38,9.769e-05,2]
[347969431,1736255435348,-541.66,9.769e-05,2]
[347969432,1736255435357,-500.0,9.769e-05,2]
[347969434,1736255435366,-500.0,9.769e-05,2]
[347969436,1736255435376,-643.09,9.769e-05,2]
[347969438,1736255435386,-500.0,9.769e-05,2]
[347969440,1736255435395,-500.0,9.769e-05,2]
[347969442,1736255435404,-497.82729431,9.769e-05,2]
[347969444,1736255435414,-839.95,9.769e-05,2]
[347969446,1736255435423,-899.03,9.769e-05,2]
[347969448,1736255435433,-520.83,9.769e-05,2]
[347969450,1736255435442,-500.0,9.769e-05,2]
[347969452,1736255435452,-603.29,9.769e-05,2]
[347969454,1736255435464,-500.0,9.769e-05,2]
[347969456,1736255435474,-563.54,9.769e-05,2]
[347969458,1736255435484,-500.0,9.769e-05,2]
[347969460,1736255435493,-1501.85,9.769e-05,2]
[347969462,1736255435503,-1903.97,9.769e-05,2]
[347969464,1736255435512,-895.39,9.769e-05,2]
[347969466,1736255435521,-500.0,9.769e-05,2]
[347969468,1736255435530,-500.0,9.769e-05,2]
[347969470,1736255435539,-47.01520635,9.769e-05,2]
[347969473,1736255435557,-2867.76479365,9.769e-05,2]
[347969475,1736255435566,-5656.47,9.769e-05,2]
[347969477,1736255435575,-587.81,9.769e-05,2]
[347969479,1736255435584,-500.0,9.769e-05,2]
[347969481,1736255435593,-500.0,9.769e-05,2]
[347969483,1736255435602,-4978.37,9.769e-05,2]
[347969485,1736255435611,-500.0,9.769e-05,2]
[347969487,1736255435620,-614.82,9.769e-05,2]
[347969489,1736255435629,-500.0,9.769e-05,2]
[347969491,1736255435639,-500.0,9.769e-05,2]
[347969493,1736255435648,-500.0,9.769e-05,2]
[347969495,1736255435657,-1601.65,9.769e-05,2]
[347969497,1736255435666,-500.0,9.769e-05,2]
[347969499,1736255435677,-500.0,9.769e-05,2]
[347969501,1736255435686,-500.0,9.769e-05,2]
[347969503,1736255435695,-500.0,9.769e-05,2]
[347969505,1736255435706,-4555.94,9.769e-05,2]
[347969507,1736255435716,-511.42,9.769e-05,2]
[347969509,1736255435726,-520.83,9.769e-05,2]
[347969511,1736255435735,-2635.25,9.769e-05,2]
[347969513,1736255435744,-827.53,9.769e-05,2]
[347969515,1736255435754,-500.0,9.769e-05,2]
[347969517,1736255435763,-500.0,9.769e-05,2]
[347969519,1736255435775,-2414.62,9.769e-05,2]
[347969521,1736255435785,-505.47479646,9.769e-05,2]
[347969523,1736255435795,-500.0,9.769e-05,2]
[347969525,1736255435804,-500.0,9.769e-05,2]
[347969527,1736255435814,-500.0,9.769e-05,2]
[347969529,1736255435824,-576.71,9.769e-05,2]
[347969531,1736255435833,-500.0,9.769e-05,2]
[347969533,1736255435842,-500.0,9.769e-05,2]
[347969535,1736255435851,-8233.44,9.769e-05,2]
[347969537,1736255435860,-500.0,9.769e-05,2]
[347969539,1736255435870,-512.87,9.769e-05,2]
[347969541,1736255435878,-500.0,9.769e-05,2]
[347969543,1736255435887,-596.96,9.769e-05,2]
[347969545,1736255435896,-3208.91,9.769e-05,2]
[347969547,1736255435905,-3748.24,9.769e-05,2]
[347969549,1736255435914,-102.20311973,9.769e-05,2]
[347969551,1736255435927,-397.79688027,9.769e-05,2]
[347969553,1736255435936,-592.63,9.769e-05,2]
[347969555,1736255435946,-500.0,9.769e-05,2]
[347969557,1736255435956,-929.62,9.769e-05,2]
[347969559,1736255435966,-500.0,9.769e-05,2]
[347969561,1736255435975,-500.0,9.769e-05,2]
[347969563,1736255435985,-7101.91,9.769e-05,2]
[347969565,1736255435994,-384.379977,9.769e-05,2]
[347969567,1736255436004,-500.0,9.769e-05,2]
[347969569,1736255436014,-500.0,9.769e-05,2]
[347969571,1736255436023,-598.75,9.769e-05,2]
[347969573,1736255436033,-500.0,9.769e-05,2]
[347969575,1736255436043,-2190.01,9.769e-05,2]
[347969577,1736255436052,-693.16,9.769e-05,2]
[347969579,1736255436062,-20214.29,9.769e-05,2]
[347969581,1736255436071,-500.0,9.769e-05,2]
[347969583,1736255436081,-583.33,9.769e-05,2]
[347969585,1736255436090,-500.0,9.769e-05,2]
[347969587,1736255436100,-500.0,9.769e-05,2]
[347969589,1736255436109,-625.0,9.769e-05,2]
[347969591,1736255436119,-500.0,9.769e-05,2]
[347969593,1736255436128,-500.0,9.769e-05,2]
[347969595,1736255436138,-500.0,9.769e-05,2]
[347969597,1736255436148,-500.0,9.769e-05,2]
[347969599,1736255436158,-500.0,9.769e-05,2]
[347969601,1736255436167,-500.0,9.769e-05,2]
[347969603,1736255436177,-500.0,9.769e-05,2]
[347969605,1736255436186,-684.85,9.769e-05,2]
[347969607,1736255436196,-500.0,9.769e-05,2]
[347969609,1736255436207,-500.0,9.769e-05,2]
[347969611,1736255436216,-500.0,9.769e-05,2]
[347969613,1736255436225,-500.0,9.769e-05,2]
[347969615,1736255436236,-2394.99,9.769e-05,2]
[347969617,1736255436245,-1225.85,9.769e-05,2]
[347969619,1736255436255,-500.0,9.769e-05,2]
[347969621,1736255436268,-500.0,9.769e-05,2]
[347969623,1736255436278,-757.58,9.769e-05,2]
[347969625,1736255436287,-500.0,9.769e-05,2]
[347969627,1736255436296,-8162.77,9.769e-05,2]
[347969629,1736255436306,-500.0,9.769e-05,2]
[347969631,1736255436316,-2618.4,9.769e-05,2]
[347969633,1736255436326,-281.18600503,9.769e-05,2]
[347969636,1736255436415,-218.81399497,9.769e-05,2]
[347969637,1736255436424,-500.0,9.769e-05,2]
[347969638,1736255436433,-1743.7565443,9.769e-05,2]
[347969836,1736255438426,-30902.447605,8.636e-05,2]
[347969837,1736255438435,-1103.0,9.636e-05,2]
[347969840,1736255438445,-167.10948141,9.768e-05,2]
[347969844,1736255438457,-500.0,9.768e-05,2]
[347969847,1736255438467,-5681.9834557,9.769e-05,2]
[347969850,1736255438476,-500.0,9.769e-05,2]
[347969853,1736255438487,-500.0,9.769e-05,2]
[347969856,1736255438496,-500.0,9.769e-05,2]
[347969859,1736255438506,-3659.57,9.769e-05,2]
[347969862,1736255438515,-500.0,9.769e-05,2]
[347969864,1736255438525,-500.0,9.769e-05,2]
[347969866,1736255438534,-500.0,9.769e-05,2]
[347969868,1736255438544,-1702.99,9.769e-05,2]
[347969870,1736255438554,-500.0,9.769e-05,2]
[347969872,1736255438563,-540.82,9.769e-05,2]
[347969874,1736255438572,-544.95,9.769e-05,2]
[347969876,1736255438581,-500.0,9.769e-05,2]
[347969877,1736255438590,-1960.8,9.769e-05,2]
[347969880,1736255438599,-5035.92750823,9.769e-05,2]
[347969882,1736255438611,-4033.80000002,9.769e-05,2]
[347969884,1736255438623,-2595.99249175,9.769e-05,2]
[347969886,1736255438631,-518.84,9.769e-05,2]
[347969888,1736255438641,-1944.64,9.769e-05,2]
[347969890,1736255438650,-506.77,9.769e-05,2]
[347969892,1736255438659,-6605.81,9.769e-05,2]
[347969894,1736255438669,-2379.09,9.769e-05,2]
[347969896,1736255438679,-500.0,9.769e-05,2]
[347969898,1736255438688,-541.66,9.769e-05,2]
[347969900,1736255438697,-5777.86,9.769e-05,2]
[347969902,1736255438707,-892.1,9.769e-05,2]
[347969904,1736255438717,-562.5,9.769e-05,2]
[347969906,1736255438725,-500.0,9.769e-05,2]
[347969908,1736255438735,-2672.3,9.769e-05,2]
[347969910,1736255438744,-1805.25,9.769e-05,2]
[347969912,1736255438753,-500.0,9.769e-05,2]
[347969914,1736255438762,-562.5,9.769e-05,2]
[347969915,1736255438774,-4625.94,9.769e-05,2]
[347969918,1736255438784,-500.0,9.769e-05,2]
[347969920,1736255438794,-500.0,9.769e-05,2]
[347969922,1736255438803,-1546.31,9.769e-05,2]
[347969923,1736255438812,-4203.32,9.769e-05,2]
[347969925,1736255438822,-500.0,9.769e-05,2]
[347969927,1736255438831,-500.0,9.769e-05,2]
[347969929,1736255438841,-500.0,9.769e-05,2]
[347969931,1736255438850,-592.2,9.769e-05,2]
[347969933,1736255438859,-500.0,9.769e-05,2]
[347969935,1736255438869,-500.0,9.769e-05,2]
[347969937,1736255438878,-2863.66508924,9.769e-05,2]
[347969941,1736255438906,-7407.0731407,9.769e-05,2]
[347969944,1736255438918,-2008.96177006,9.769e-05,2]
[347969946,1736255438928,-201.34509084,9.769e-05,2]
[347969948,1736255438937,-6279.74629951,9.769e-05,2]
[347969950,1736255438949,-2086.02370049,9.769e-05,2]
[347969952,1736255438960,-307.96473241,9.769e-05,2]
[347969954,1736255438972,-192.03526759,9.769e-05,2]
[347969956,1736255438982,-500.0,9.769e-05,2]
[347969958,1736255438991,-500.0,9.769e-05,2]
[347969960,1736255439000,-500.0,9.769e-05,2]
[347969962,1736255439009,-500.0,9.769e-05,2]
[347969964,1736255439018,-228.1072753,9.769e-05,2]
[347969976,1736255439119,-271.8927247,9.769e-05,2]
[347969978,1736255439128,-500.0,9.769e-05,2]
[347969980,1736255439137,-870.10138946,9.769e-05,2]
[347969982,1736255439149,-393.69097478,9.769e-05,2]
[347969984,1736255439160,-5220.31763576,9.769e-05,2]
[347969986,1736255439169,-500.0,9.769e-05,2]
[347969988,1736255439179,-1516.90755514,9.769e-05,2]
[347969991,1736255439201,-5771.30244486,9.769e-05,2]
[347969993,1736255439213,-9352.66,9.769e-05,2]
[347969995,1736255439222,-500.0,9.769e-05,2]
[347969997,1736255439232,-1574.62,9.769e-05,2]
[347969999,1736255439241,-512.17,9.769e-05,2]
[347970001,1736255439250,-500.0,9.769e-05,2]
[347970003,1736255439260,-500.0,9.769e-05,2]
[347970005,1736255439269,-1431.2,9.769e-05,2]
[347970007,1736255439279,-500.0,9.769e-05,2]
[347970009,1736255439288,-1355.54,9.769e-05,2]
[347970011,1736255439297,-855.4769549,9.769e-05,2]
[347970013,1736255439308,-2186.1730451,9.769e-05,2]
[347970015,1736255439318,-500.0,9.769e-05,2]